[Event "Early-Titled-Tuesday-Blitz-April-02-2024"]
[Site "Chess.com"]
[Date "2024.04.02"]
[Round "1"]
[White "Kazmin_Semyon"]
[Black "BestestBP"]
[Result "1-0"]
[WhiteElo "2597"]
[BlackElo "2214"]
[TimeControl "180+1"]
[EndTime "8:06:59 PDT"]
[Termination "Kazmin_Semyon won by checkmate"]

1. e4 {[%clk 0:03:00.1]} 1... e5 {[%clk 0:02:59.1]} 2. Nf3 {[%clk 0:03:00.3]}
2... Nc6 {[%clk 0:02:59.4]} 3. Bb5 {[%clk 0:02:59]} 3... a6 {[%clk 0:02:57.1]}
4. Ba4 {[%clk 0:02:59.6]} 4... Nf6 {[%clk 0:02:57.6]} 5. O-O {[%clk 0:02:59.6]}
5... Be7 {[%clk 0:02:57.1]} 6. Re1 {[%clk 0:02:55.6]} 6... b5 {[%clk 0:02:54.9]}
7. Bb3 {[%clk 0:02:55.7]} 7... d6 {[%clk 0:02:55.4]} 8. c3 {[%clk 0:02:53.4]}
8... Na5 {[%clk 0:02:55.5]} 9. Bc2 {[%clk 0:02:53.7]} 9... c5 {[%clk 0:02:55.8]}
10. d4 {[%clk 0:02:51.3]} 10... exd4 {[%clk 0:02:55.3]} 11. cxd4 {[%clk
0:02:51.7]} 11... Bg4 {[%clk 0:02:56]} 12. h3 {[%clk 0:02:51.6]} 12... Bxf3
{[%clk 0:02:55]} 13. Qxf3 {[%clk 0:02:52.5]} 13... cxd4 {[%clk 0:02:55.5]} 14.
b3 {[%clk 0:02:50.5]} 14... O-O {[%clk 0:02:51.2]} 15. Bb2 {[%clk 0:02:49.6]}
15... Nc6 {[%clk 0:02:51.8]} 16. Nd2 {[%clk 0:02:49.2]} 16... Ne5 {[%clk
0:02:47]} 17. Qg3 {[%clk 0:02:47]} 17... Nh5 {[%clk 0:02:36.4]} 18. Qh2 {[%clk
0:02:43.7]} 18... d3 {[%clk 0:02:34.5]} 19. Bd1 {[%clk 0:02:42.7]} 19... Nf6
{[%clk 0:02:32.9]} 20. f4 {[%clk 0:02:41.8]} 20... Qb6+ {[%clk 0:02:30.8]} 21.
Kf1 {[%clk 0:02:31.4]} 21... Ng6 {[%clk 0:02:22.3]} 22. Qg3 {[%clk 0:02:13.7]}
22... Nh5 {[%clk 0:02:16.7]} 23. Bxh5 {[%clk 0:02:13.4]} 23... Bh4 {[%clk
0:02:14.4]} 24. Qe3 {[%clk 0:02:07.2]} 24... Qa5 {[%clk 0:01:43]} 25. g3 {[%clk
0:02:02.4]} 25... Bxg3 {[%clk 0:01:42.5]} 26. Qxg3 {[%clk 0:01:42.9]} 26... Qxd2
{[%clk 0:01:41.7]} 27. Qf2 {[%clk 0:01:38.3]} 27... Qxf2+ {[%clk 0:01:28.6]} 28.
Kxf2 {[%clk 0:01:39.2]} 28... Nxf4 {[%clk 0:01:29.1]} 29. Bf3 {[%clk 0:01:30.6]}
29... Nxh3+ {[%clk 0:01:28.6]} 30. Ke3 {[%clk 0:01:28.9]} 30... Ng5 {[%clk
0:01:28.4]} 31. Rg1 {[%clk 0:01:26]} 31... h6 {[%clk 0:01:19.9]} 32. Bh1 {[%clk
0:01:11]} 32... f5 {[%clk 0:00:52.7]} 33. exf5 {[%clk 0:01:02.1]} 33... Rae8+
{[%clk 0:00:52.2]} 34. Kxd3 {[%clk 0:01:02.8]} 34... Rxf5 {[%clk 0:00:50]} 35.
Rae1 {[%clk 0:01:03.4]} 35... Rxe1 {[%clk 0:00:31.6]} 36. Rxe1 {[%clk
0:01:04.3]} 36... Rf2 {[%clk 0:00:31.7]} 37. Bd4 {[%clk 0:01:00.9]} 37... Rxa2
{[%clk 0:00:22.6]} 38. Re7 {[%clk 0:01:00.9]} 38... Kf8 {[%clk 0:00:15]} 39. Ra7
{[%clk 0:01:01.1]} 39... a5 {[%clk 0:00:13.6]} 40. Bxg7+ {[%clk 0:00:57.9]}
40... Ke8 {[%clk 0:00:13.8]} 41. Bc6+ {[%clk 0:00:44.1]} 41... Kd8 {[%clk
0:00:14]} 42. Bd4 {[%clk 0:00:44.8]} 42... a4 {[%clk 0:00:09.4]} 43. Bb6+ {[%clk
0:00:45.5]} 43... Kc8 {[%clk 0:00:08.6]} 44. Ra8# {[%clk 0:00:46.4]} 1-0

[Event "Early-Titled-Tuesday-Blitz-April-02-2024"]
[Site "Chess.com"]
[Date "2024.04.02"]
[Round "1"]
[White "Oleksandr_Bortnyk"]
[Black "Macron20hTF1"]
[Result "0-1"]
[WhiteElo "3039"]
[BlackElo "2562"]
[TimeControl "180+1"]
[EndTime "8:07:02 PDT"]
[Termination "Macron20hTF1 won by resignation"]

1. e4 {[%clk 0:03:00.9]} 1... e6 {[%clk 0:03:00.1]} 2. d4 {[%clk 0:03:00.4]}
2... d5 {[%clk 0:03:01]} 3. Nc3 {[%clk 0:02:56.7]} 3... Nf6 {[%clk 0:03:00.7]}
4. Bg5 {[%clk 0:02:55.9]} 4... h6 {[%clk 0:03:00.3]} 5. Bxf6 {[%clk 0:02:31.3]}
5... Qxf6 {[%clk 0:03:01.2]} 6. exd5 {[%clk 0:02:29.6]} 6... Bb4 {[%clk
0:03:01.3]} 7. Bb5+ {[%clk 0:02:23.4]} 7... Bd7 {[%clk 0:02:57.6]} 8. Bxd7+
{[%clk 0:02:07.8]} 8... Nxd7 {[%clk 0:02:57.5]} 9. dxe6 {[%clk 0:02:07.7]} 9...
Qxe6+ {[%clk 0:02:58.1]} 10. Ne2 {[%clk 0:02:04.8]} 10... Bxc3+ {[%clk
0:02:54.5]} 11. bxc3 {[%clk 0:02:05.7]} 11... O-O-O {[%clk 0:02:44.2]} 12. O-O
{[%clk 0:02:02.7]} 12... Rhe8 {[%clk 0:02:40.3]} 13. Nf4 {[%clk 0:01:50.6]}
13... Qf5 {[%clk 0:02:36.5]} 14. Nd3 {[%clk 0:01:49.4]} 14... Re6 {[%clk
0:02:17.2]} 15. Rb1 {[%clk 0:01:43.8]} 15... Rde8 {[%clk 0:01:54.4]} 16. a4
{[%clk 0:01:40.9]} 16... Rg6 {[%clk 0:01:43.7]} 17. Rb5 {[%clk 0:01:35.1]} 17...
Qe4 {[%clk 0:01:39.1]} 18. g3 {[%clk 0:01:34]} 18... Qc6 {[%clk 0:01:28.1]} 19.
Qd2 {[%clk 0:01:19.4]} 19... a6 {[%clk 0:01:27.2]} 20. Rb4 {[%clk 0:00:59.1]}
20... Rge6 {[%clk 0:01:20.8]} 21. Nf4 {[%clk 0:00:53.6]} 21... Re4 {[%clk
0:01:17.3]} 22. d5 {[%clk 0:00:40.3]} 22... Qd6 {[%clk 0:01:04.5]} 23. Rxe4
{[%clk 0:00:38.1]} 23... Rxe4 {[%clk 0:01:05.4]} 24. Re1 {[%clk 0:00:38.9]}
24... Ne5 {[%clk 0:01:00.3]} 25. Kg2 {[%clk 0:00:31.2]} 25... Rxe1 {[%clk
0:01:00.5]} 26. Qxe1 {[%clk 0:00:31.3]} 26... g5 {[%clk 0:01:01.2]} 27. Nh3
{[%clk 0:00:09.7]} 27... Qxd5+ {[%clk 0:01:01.6]} 28. Kf1 {[%clk 0:00:10.6]}
28... Qh1+ {[%clk 0:00:57.5]} 29. Ng1 {[%clk 0:00:10.6]} 29... Qxg1+ {[%clk
0:00:56.8]} 30. Kxg1 {[%clk 0:00:11.5]} 30... Nf3+ {[%clk 0:00:57.5]} 31. Kf1
{[%clk 0:00:12.4]} 31... Nxe1 {[%clk 0:00:58.4]} 32. Kxe1 {[%clk 0:00:13.3]}
32... Kd7 {[%clk 0:00:57.6]} 33. Ke2 {[%clk 0:00:10.5]} 33... Kc6 {[%clk
0:00:53.8]} 34. Kf3 {[%clk 0:00:08.6]} 34... Kd5 {[%clk 0:00:48.7]} 35. Kg4
{[%clk 0:00:08.5]} 35... b5 {[%clk 0:00:41.7]} 36. a5 {[%clk 0:00:06.2]} 36...
Kc4 {[%clk 0:00:34]} 37. Kh5 {[%clk 0:00:06.7]} 37... Kxc3 {[%clk 0:00:34.6]}
38. Kxh6 {[%clk 0:00:07.4]} 38... g4 {[%clk 0:00:34.7]} 39. Kg5 {[%clk
0:00:03.6]} 39... Kxc2 {[%clk 0:00:34.1]} 40. Kxg4 {[%clk 0:00:04.5]} 40... b4
{[%clk 0:00:34.7]} 41. h4 {[%clk 0:00:05.4]} 41... b3 {[%clk 0:00:35.3]} 42. h5
{[%clk 0:00:06.3]} 42... b2 {[%clk 0:00:36]} 43. h6 {[%clk 0:00:07.2]} 43...
b1=Q {[%clk 0:00:36.6]} 44. h7 {[%clk 0:00:07.6]} 44... Qh1 {[%clk 0:00:36.8]}
0-1

[Event "Early-Titled-Tuesday-Blitz-April-02-2024"]
[Site "Chess.com"]
[Date "2024.04.02"]
[Round "1"]
[White "slidingknight2775"]
[Black "Chernov_Alexander_A"]
[Result "1-0"]
[WhiteElo "2597"]
[BlackElo "2208"]
[TimeControl "180+1"]
[EndTime "8:07:05 PDT"]
[Termination "slidingknight2775 won by resignation"]

1. e4 {[%clk 0:03:00.9]} 1... d6 {[%clk 0:02:58.6]} 2. d4 {[%clk 0:02:55.5]}
2... Nf6 {[%clk 0:02:58.2]} 3. Bd3 {[%clk 0:02:53.9]} 3... e5 {[%clk 0:02:55.7]}
4. c3 {[%clk 0:02:52.3]} 4... Nc6 {[%clk 0:02:51.2]} 5. Ne2 {[%clk 0:02:48.8]}
5... d5 {[%clk 0:02:47.5]} 6. exd5 {[%clk 0:02:46.1]} 6... Nxd5 {[%clk
0:02:42.5]} 7. dxe5 {[%clk 0:02:39.8]} 7... Nxe5 {[%clk 0:02:40.9]} 8. Be4
{[%clk 0:02:40]} 8... Be6 {[%clk 0:02:33.2]} 9. O-O {[%clk 0:02:36.1]} 9... c6
{[%clk 0:02:29.5]} 10. Nd4 {[%clk 0:02:34.6]} 10... Nf6 {[%clk 0:02:22.6]} 11.
Nxe6 {[%clk 0:02:30.7]} 11... Qxd1 {[%clk 0:02:21.6]} 12. Rxd1 {[%clk
0:02:30.7]} 12... fxe6 {[%clk 0:02:21.6]} 13. Bc2 {[%clk 0:02:29.7]} 13... Bc5
{[%clk 0:02:17]} 14. h3 {[%clk 0:02:22.2]} 14... O-O {[%clk 0:02:15]} 15. Nd2
{[%clk 0:02:07.9]} 15... Rad8 {[%clk 0:02:03.5]} 16. Nf1 {[%clk 0:02:04.9]}
16... Rxd1 {[%clk 0:01:57]} 17. Bxd1 {[%clk 0:02:04.9]} 17... Nd3 {[%clk
0:01:57.1]} 18. Be3 {[%clk 0:02:01.8]} 18... Bxe3 {[%clk 0:01:51.6]} 19. Nxe3
{[%clk 0:02:02.7]} 19... Nxf2 {[%clk 0:01:39.7]} 20. Kxf2 {[%clk 0:01:53.6]}
20... Ne4+ {[%clk 0:01:31.3]} 21. Ke1 {[%clk 0:01:51.6]} 21... Ng3 {[%clk
0:01:21]} 22. Bf3 {[%clk 0:01:47.4]} 22... g6 {[%clk 0:01:15.7]} 23. Rd1 {[%clk
0:01:46.1]} 23... Rf7 {[%clk 0:01:14.7]} 24. Ng4 {[%clk 0:01:43.6]} 24... Kg7
{[%clk 0:01:09.3]} 25. Ne5 {[%clk 0:01:43.3]} 25... Re7 {[%clk 0:01:08.9]} 26.
Rd7 {[%clk 0:01:43.1]} 26... Kf6 {[%clk 0:01:04]} 27. Ng4+ {[%clk 0:01:38.4]}
27... Kf7 {[%clk 0:01:03]} 28. Ne5+ {[%clk 0:01:38.3]} 28... Kf6 {[%clk
0:01:02.7]} 29. Rxe7 {[%clk 0:01:38.8]} 29... Kxe7 {[%clk 0:01:02.2]} 30. Nc4
{[%clk 0:01:30.3]} 30... Kd7 {[%clk 0:00:58.6]} 31. Ne3 {[%clk 0:01:26.9]} 31...
h5 {[%clk 0:00:52.8]} 32. h4 {[%clk 0:01:21.8]} 32... Kd6 {[%clk 0:00:49.4]} 33.
Kf2 {[%clk 0:01:21.6]} 33... Nh1+ {[%clk 0:00:44.9]} 34. Kg1 {[%clk 0:01:17.9]}
34... Ng3 {[%clk 0:00:44.7]} 35. Kh2 {[%clk 0:01:16.3]} 35... Nf5 {[%clk
0:00:44.4]} 36. Nxf5+ {[%clk 0:01:15.8]} 36... exf5 {[%clk 0:00:45.3]} 37. Kg3
{[%clk 0:01:12.7]} 37... Ke5 {[%clk 0:00:44.4]} 38. Kf2 {[%clk 0:01:13.2]} 38...
f4 {[%clk 0:00:40]} 39. Bd1 {[%clk 0:01:08.4]} 39... g5 {[%clk 0:00:28.9]} 40.
hxg5 {[%clk 0:01:07.3]} 40... Kf5 {[%clk 0:00:29]} 41. Bxh5 {[%clk 0:01:07.7]}
41... Kxg5 {[%clk 0:00:29.1]} 42. Kf3 {[%clk 0:01:06.3]} 42... Kf5 {[%clk
0:00:28.7]} 43. Be8 {[%clk 0:01:05.2]} 43... Ke5 {[%clk 0:00:27.2]} 44. Bg6
{[%clk 0:01:05.2]} 44... c5 {[%clk 0:00:25.1]} 45. Bh7 {[%clk 0:01:03.6]} 45...
b5 {[%clk 0:00:21.2]} 46. a3 {[%clk 0:00:59.5]} 46... a5 {[%clk 0:00:16.2]} 47.
Bc2 {[%clk 0:00:58.8]} 47... b4 {[%clk 0:00:16]} 48. axb4 {[%clk 0:00:58.8]}
48... axb4 {[%clk 0:00:13.8]} 49. cxb4 {[%clk 0:00:59.1]} 49... cxb4 {[%clk
0:00:13.1]} 50. Bh7 {[%clk 0:00:52.4]} 1-0

[Event "Early-Titled-Tuesday-Blitz-April-02-2024"]
[Site "Chess.com"]
[Date "2024.04.02"]
[Round "1"]
[White "sergoy"]
[Black "krucki03"]
[Result "1/2-1/2"]
[WhiteElo "2897"]
[BlackElo "2522"]
[TimeControl "180+1"]
[EndTime "8:07:06 PDT"]
[Termination "Game drawn by repetition"]

1. d4 {[%clk 0:02:59.9]} 1... Nf6 {[%clk 0:02:56.7]} 2. c4 {[%clk 0:02:59.9]}
2... c5 {[%clk 0:02:57.4]} 3. d5 {[%clk 0:03:00]} 3... b5 {[%clk 0:02:58]} 4.
cxb5 {[%clk 0:03:00.2]} 4... a6 {[%clk 0:02:58.5]} 5. bxa6 {[%clk 0:03:00.7]}
5... g6 {[%clk 0:02:58.7]} 6. Nc3 {[%clk 0:03:00]} 6... Bg7 {[%clk 0:02:59.1]}
7. e4 {[%clk 0:02:59.4]} 7... O-O {[%clk 0:02:58.9]} 8. Nf3 {[%clk 0:02:59.4]}
8... Qa5 {[%clk 0:02:52.9]} 9. Bd2 {[%clk 0:02:39.9]} 9... Bxa6 {[%clk
0:02:50.8]} 10. Be2 {[%clk 0:02:40.3]} 10... Qb4 {[%clk 0:02:45.4]} 11. a3
{[%clk 0:02:25.2]} 11... Qxb2 {[%clk 0:02:34.8]} 12. Bxa6 {[%clk 0:02:11.3]}
12... Nxa6 {[%clk 0:02:27.4]} 13. O-O {[%clk 0:02:02.8]} 13... d6 {[%clk
0:02:25.1]} 14. e5 {[%clk 0:01:57]} 14... dxe5 {[%clk 0:02:17.9]} 15. Nxe5
{[%clk 0:01:56.7]} 15... Nxd5 {[%clk 0:02:15]} 16. Nxd5 {[%clk 0:01:25.9]} 16...
Qxe5 {[%clk 0:02:12.7]} 17. Bc3 {[%clk 0:01:26.4]} 17... Qd6 {[%clk 0:02:11.2]}
18. Nf6+ {[%clk 0:01:14.4]} 18... Bxf6 {[%clk 0:02:09.5]} 19. Qxd6 {[%clk
0:01:14]} 19... exd6 {[%clk 0:02:09.9]} 20. Bxf6 {[%clk 0:01:14.5]} 20... Rfe8
{[%clk 0:02:08]} 21. Rfd1 {[%clk 0:01:13.9]} 21... Re6 {[%clk 0:02:07.7]} 22.
Bc3 {[%clk 0:01:04.2]} 22... Nc7 {[%clk 0:02:06.6]} 23. a4 {[%clk 0:01:00.4]}
23... d5 {[%clk 0:02:06.6]} 24. a5 {[%clk 0:00:56.9]} 24... d4 {[%clk
0:02:06.5]} 25. Be1 {[%clk 0:00:57.1]} 25... Na6 {[%clk 0:01:19.4]} 26. Kf1
{[%clk 0:00:46.8]} 26... f5 {[%clk 0:01:13.1]} 27. Rab1 {[%clk 0:00:45.6]} 27...
Kf7 {[%clk 0:01:06.9]} 28. Rb7+ {[%clk 0:00:44.3]} 28... Re7 {[%clk 0:01:06.1]}
29. Rb6 {[%clk 0:00:44.6]} 29... Re6 {[%clk 0:01:00.8]} 30. Rb7+ {[%clk
0:00:44.2]} 30... Re7 {[%clk 0:01:00.7]} 31. Rb6 {[%clk 0:00:40.2]} 31... Re6
{[%clk 0:00:55.9]} 32. Rb5 {[%clk 0:00:33.8]} 32... Rd6 {[%clk 0:00:47.8]} 33.
Rb7+ {[%clk 0:00:25.3]} 33... Kf6 {[%clk 0:00:45.3]} 34. f3 {[%clk 0:00:25.6]}
34... c4 {[%clk 0:00:42.9]} 35. Bg3 {[%clk 0:00:25.8]} 35... Rd5 {[%clk
0:00:35.9]} 36. Rb6+ {[%clk 0:00:25.6]} 36... Kf7 {[%clk 0:00:27.6]} 37. Rb7+
{[%clk 0:00:25.2]} 37... Kf6 {[%clk 0:00:27.9]} 38. Rb6+ {[%clk 0:00:20.8]}
38... Kf7 {[%clk 0:00:27.7]} 39. Rb7+ {[%clk 0:00:15.1]} 39... Kf6 {[%clk
0:00:24.1]} 1/2-1/2

[Event "Early-Titled-Tuesday-Blitz-April-02-2024"]
[Site "Chess.com"]
[Date "2024.04.02"]
[Round "1"]
[White "Makswolf200817"]
[Black "NastyaHn"]
[Result "1-0"]
[WhiteElo "2746"]
[BlackElo "2435"]
[TimeControl "180+1"]
[EndTime "8:07:07 PDT"]
[Termination "Makswolf200817 won by resignation"]

1. e4 {[%clk 0:03:00.3]} 1... e6 {[%clk 0:02:58.2]} 2. d4 {[%clk 0:03:00]} 2...
d5 {[%clk 0:02:53.5]} 3. Nc3 {[%clk 0:02:59.7]} 3... Bb4 {[%clk 0:02:52.9]} 4.
e5 {[%clk 0:02:57.2]} 4... c5 {[%clk 0:02:51.6]} 5. Bd2 {[%clk 0:02:55.4]} 5...
a6 {[%clk 0:02:41]} 6. a3 {[%clk 0:02:52]} 6... Bxc3 {[%clk 0:02:37.6]} 7. Bxc3
{[%clk 0:02:51.8]} 7... cxd4 {[%clk 0:02:35.8]} 8. Qxd4 {[%clk 0:02:44.4]} 8...
Ne7 {[%clk 0:02:32.4]} 9. Nf3 {[%clk 0:02:41.2]} 9... Nbc6 {[%clk 0:02:31.5]}
10. Qg4 {[%clk 0:02:41]} 10... Nf5 {[%clk 0:02:25.9]} 11. Bd3 {[%clk 0:02:37.6]}
11... Nce7 {[%clk 0:02:21.1]} 12. Bb4 {[%clk 0:02:30.6]} 12... g6 {[%clk
0:02:04.9]} 13. h4 {[%clk 0:02:07.8]} 13... h5 {[%clk 0:01:57.6]} 14. Qg5 {[%clk
0:02:04.5]} 14... Nc6 {[%clk 0:01:56.2]} 15. Bd2 {[%clk 0:01:51.5]} 15... Qxg5
{[%clk 0:01:52.5]} 16. Bxg5 {[%clk 0:01:52.4]} 16... Bd7 {[%clk 0:01:51.8]} 17.
Bf6 {[%clk 0:01:51]} 17... O-O {[%clk 0:01:51.2]} 18. Ng5 {[%clk 0:01:40.2]}
18... Rfc8 {[%clk 0:01:41.7]} 19. g4 {[%clk 0:01:37.2]} 19... Nh6 {[%clk
0:01:04]} 20. gxh5 {[%clk 0:01:36]} 20... Nd4 {[%clk 0:01:03.6]} 21. O-O-O
{[%clk 0:01:05.9]} 21... Ba4 {[%clk 0:00:41.3]} 22. hxg6 {[%clk 0:00:30]} 22...
Nxc2 {[%clk 0:00:24.2]} 23. gxf7+ {[%clk 0:00:28.8]} 23... Nxf7 {[%clk
0:00:20.9]} 24. Bh7+ {[%clk 0:00:20.9]} 24... Kf8 {[%clk 0:00:20.7]} 25. Nxe6+
{[%clk 0:00:21.4]} 25... Ke8 {[%clk 0:00:20.8]} 26. Kb1 {[%clk 0:00:22]} 26...
Nxa3+ {[%clk 0:00:18.3]} 27. bxa3 {[%clk 0:00:22.2]} 27... Bxd1 {[%clk
0:00:18.5]} 28. Rxd1 {[%clk 0:00:23.1]} 28... Rc6 {[%clk 0:00:16]} 29. Nd4
{[%clk 0:00:23.1]} 29... Rc3 {[%clk 0:00:15.2]} 30. e6 {[%clk 0:00:22.1]} 30...
Nd6 {[%clk 0:00:15]} 31. Bg6+ {[%clk 0:00:22.8]} 31... Kf8 {[%clk 0:00:14.6]}
32. e7+ {[%clk 0:00:23.4]} 32... Kg8 {[%clk 0:00:14.8]} 33. Nf5 {[%clk
0:00:20.6]} 33... Nxf5 {[%clk 0:00:13.4]} 34. Bxc3 {[%clk 0:00:20.3]} 34... Nxe7
{[%clk 0:00:13.2]} 35. Bc2 {[%clk 0:00:20.6]} 35... Rc8 {[%clk 0:00:13.2]} 36.
Bf6 {[%clk 0:00:20.7]} 36... Kf7 {[%clk 0:00:13]} 37. Bxe7 {[%clk 0:00:20.2]}
37... Kxe7 {[%clk 0:00:13.9]} 38. Rxd5 {[%clk 0:00:20.7]} 1-0

[Event "Early-Titled-Tuesday-Blitz-April-02-2024"]
[Site "Chess.com"]
[Date "2024.04.02"]
[Round "1"]
[White "GP9isback23"]
[Black "GoValya"]
[Result "1-0"]
[WhiteElo "2604"]
[BlackElo "2240"]
[TimeControl "180+1"]
[EndTime "8:07:08 PDT"]
[Termination "GP9isback23 won by resignation"]

1. d4 {[%clk 0:03:00.9]} 1... Nf6 {[%clk 0:02:57]} 2. Nf3 {[%clk 0:03:00.8]}
2... g6 {[%clk 0:02:55.4]} 3. e3 {[%clk 0:03:00.7]} 3... d5 {[%clk 0:02:54.4]}
4. Be2 {[%clk 0:03:01.6]} 4... Bg7 {[%clk 0:02:54.3]} 5. O-O {[%clk 0:03:02.5]}
5... O-O {[%clk 0:02:54.5]} 6. b3 {[%clk 0:03:03.3]} 6... c5 {[%clk 0:02:54.5]}
7. Bb2 {[%clk 0:03:04.2]} 7... b6 {[%clk 0:02:54.8]} 8. Nbd2 {[%clk 0:03:03.8]}
8... Ba6 {[%clk 0:02:54.7]} 9. c4 {[%clk 0:03:03.2]} 9... dxc4 {[%clk
0:02:50.6]} 10. Nxc4 {[%clk 0:03:03]} 10... Bb7 {[%clk 0:02:43.6]} 11. Rc1
{[%clk 0:03:02.3]} 11... Nc6 {[%clk 0:02:38.6]} 12. dxc5 {[%clk 0:03:02.6]}
12... bxc5 {[%clk 0:02:38.9]} 13. Qxd8 {[%clk 0:02:43.8]} 13... Rfxd8 {[%clk
0:02:39.8]} 14. Nce5 {[%clk 0:02:43.9]} 14... Nb4 {[%clk 0:02:22.6]} 15. a3
{[%clk 0:02:38.8]} 15... Na6 {[%clk 0:02:04.8]} 16. Bc4 {[%clk 0:02:24.4]} 16...
e6 {[%clk 0:01:53.7]} 17. Ng5 {[%clk 0:02:00.1]} 17... Rf8 {[%clk 0:01:34.2]}
18. Nexf7 {[%clk 0:01:24.8]} 18... Rxf7 {[%clk 0:01:35.1]} 19. Bxe6 {[%clk
0:01:24.8]} 19... Bd5 {[%clk 0:01:35.3]} 20. Bxf6 {[%clk 0:00:48.5]} 20... Bxe6
{[%clk 0:01:32.5]} 21. Bxg7 {[%clk 0:00:48.7]} 21... Bxb3 {[%clk 0:01:08.1]} 22.
Nxf7 {[%clk 0:00:43.2]} 22... Kxf7 {[%clk 0:01:08.5]} 23. Bc3 {[%clk 0:00:40.6]}
23... c4 {[%clk 0:01:08.7]} 24. Bd4 {[%clk 0:00:37.1]} 24... Nc7 {[%clk
0:01:06.4]} 25. a4 {[%clk 0:00:34]} 25... Nd5 {[%clk 0:01:05.5]} 26. f4 {[%clk
0:00:25.5]} 26... a6 {[%clk 0:01:05.5]} 27. f5 {[%clk 0:00:26]} 27... Re8 {[%clk
0:00:58.1]} 28. fxg6+ {[%clk 0:00:25.2]} 28... Kxg6 {[%clk 0:00:58.6]} 29. Rf3
{[%clk 0:00:24.4]} 29... Nb4 {[%clk 0:00:56.7]} 30. Rf6+ {[%clk 0:00:23.2]}
30... Kg5 {[%clk 0:00:55.5]} 31. Rb6 {[%clk 0:00:21.9]} 31... Nd3 {[%clk
0:00:53.7]} 32. Rc3 {[%clk 0:00:22.5]} 32... Bxa4 {[%clk 0:00:36.6]} 33. Rxc4
{[%clk 0:00:20.4]} 33... Bb5 {[%clk 0:00:34.9]} 34. Rc3 {[%clk 0:00:19.3]} 34...
Ne5 {[%clk 0:00:31.3]} 35. Rc5 {[%clk 0:00:17.9]} 35... Rf8 {[%clk 0:00:24.4]}
36. Rxe5+ {[%clk 0:00:17.1]} 36... Kg4 {[%clk 0:00:24.9]} 37. h3+ {[%clk
0:00:17]} 37... Kg3 {[%clk 0:00:25.2]} 38. Rg5+ {[%clk 0:00:17]} 38... Kh4
{[%clk 0:00:25.6]} 39. Rg4+ {[%clk 0:00:16.4]} 39... Kh5 {[%clk 0:00:25.9]} 40.
Bg7 {[%clk 0:00:12.2]} 40... Rf1+ {[%clk 0:00:24.9]} 41. Kh2 {[%clk 0:00:12.2]}
1-0

[Event "Early-Titled-Tuesday-Blitz-April-02-2024"]
[Site "Chess.com"]
[Date "2024.04.02"]
[Round "1"]
[White "valik3504"]
[Black "maurovargas01"]
[Result "1-0"]
[WhiteElo "2553"]
[BlackElo "1862"]
[TimeControl "180+1"]
[EndTime "8:07:08 PDT"]
[Termination "valik3504 won on time"]

1. d4 {[%clk 0:02:56.1]} 1... d5 {[%clk 0:01:50.4]} 2. Nf3 {[%clk 0:02:55.1]}
2... Bg4 {[%clk 0:01:47.3]} 3. Ne5 {[%clk 0:02:52.3]} 3... Bh5 {[%clk 0:01:47]}
4. c4 {[%clk 0:02:29.2]} 4... f6 {[%clk 0:01:44.4]} 5. Qa4+ {[%clk 0:02:10.3]}
5... c6 {[%clk 0:01:41.8]} 6. Nd3 {[%clk 0:02:10.1]} 6... e6 {[%clk 0:01:31.7]}
7. Nc3 {[%clk 0:02:03.9]} 7... Bd6 {[%clk 0:01:30.2]} 8. c5 {[%clk 0:01:47.6]}
8... Bc7 {[%clk 0:01:28.8]} 9. e4 {[%clk 0:01:46.5]} 9... dxe4 {[%clk
0:01:23.2]} 10. Nxe4 {[%clk 0:01:47.4]} 10... Bg6 {[%clk 0:01:21.5]} 11. f3
{[%clk 0:01:41.5]} 11... Ne7 {[%clk 0:01:20.8]} 12. Bf4 {[%clk 0:01:35.3]} 12...
O-O {[%clk 0:01:17.2]} 13. Bd6 {[%clk 0:01:29.8]} 13... Re8 {[%clk 0:01:14.7]}
14. Qb3 {[%clk 0:01:27.6]} 14... Nd5 {[%clk 0:01:14]} 15. Qxb7 {[%clk
0:01:24.3]} 15... Ba5+ {[%clk 0:01:01.7]} 16. b4 {[%clk 0:01:15.6]} 16... Nd7
{[%clk 0:00:32.6]} 17. a3 {[%clk 0:00:45]} 17... Bc7 {[%clk 0:00:28.8]} 18. Qxc6
{[%clk 0:00:42.3]} 18... a5 {[%clk 0:00:23.3]} 19. b5 {[%clk 0:00:39]} 19... e5
{[%clk 0:00:16.9]} 20. Qxd5+ {[%clk 0:00:37.1]} 20... Bf7 {[%clk 0:00:11.9]} 21.
Bxc7 {[%clk 0:00:36.9]} 21... Qxc7 {[%clk 0:00:10.9]} 22. Qc6 {[%clk 0:00:33.6]}
22... exd4 {[%clk 0:00:10.3]} 23. Qxc7 {[%clk 0:00:33.4]} 23... Ne5 {[%clk
0:00:04.1]} 24. Nxe5 {[%clk 0:00:31.5]} 24... Rxe5 {[%clk 0:00:03.9]} 25. b6
{[%clk 0:00:21.7]} 25... f5 {[%clk 0:00:04]} 26. Qxe5 {[%clk 0:00:21.7]} 26...
fxe4 {[%clk 0:00:03.2]} 27. fxe4 {[%clk 0:00:20.8]} 27... Re8 {[%clk 0:00:03.9]}
28. Qxe8+ {[%clk 0:00:18.9]} 28... Bxe8 {[%clk 0:00:03.7]} 29. Bc4+ {[%clk
0:00:19.6]} 29... Kh8 {[%clk 0:00:01.9]} 30. O-O {[%clk 0:00:18.8]} 1-0

[Event "Early-Titled-Tuesday-Blitz-April-02-2024"]
[Site "Chess.com"]
[Date "2024.04.02"]
[Round "1"]
[White "madmax011"]
[Black "Bykov_Egor"]
[Result "0-1"]
[WhiteElo "2356"]
[BlackElo "2659"]
[TimeControl "180+1"]
[EndTime "8:07:10 PDT"]
[Termination "Bykov_Egor won by resignation"]

1. d4 {[%clk 0:02:59.6]} 1... Nf6 {[%clk 0:02:59.5]} 2. c4 {[%clk 0:02:59.8]}
2... g6 {[%clk 0:02:59.6]} 3. Nc3 {[%clk 0:03:00.2]} 3... Bg7 {[%clk 0:02:59.4]}
4. e4 {[%clk 0:03:00.3]} 4... d6 {[%clk 0:03:00]} 5. Nf3 {[%clk 0:02:57.6]} 5...
O-O {[%clk 0:03:00]} 6. Bd3 {[%clk 0:02:57.2]} 6... Bg4 {[%clk 0:02:57.7]} 7. h3
{[%clk 0:02:52.2]} 7... Bxf3 {[%clk 0:02:56.9]} 8. Qxf3 {[%clk 0:02:53.1]} 8...
Nc6 {[%clk 0:02:56.6]} 9. Be3 {[%clk 0:02:52.1]} 9... Nd7 {[%clk 0:02:49.6]} 10.
Ne2 {[%clk 0:02:33.5]} 10... e5 {[%clk 0:02:49.3]} 11. d5 {[%clk 0:02:31.9]}
11... Nd4 {[%clk 0:02:45.5]} 12. Bxd4 {[%clk 0:02:24]} 12... exd4 {[%clk
0:02:46.4]} 13. O-O {[%clk 0:02:23.7]} 13... Qe7 {[%clk 0:02:12.4]} 14. Qg3
{[%clk 0:02:17.3]} 14... Nc5 {[%clk 0:02:07.6]} 15. Rfe1 {[%clk 0:01:47.6]}
15... Rae8 {[%clk 0:01:43.1]} 16. Nf4 {[%clk 0:01:39.6]} 16... Be5 {[%clk
0:01:18.1]} 17. Bc2 {[%clk 0:01:15.7]} 17... g5 {[%clk 0:01:13.5]} 18. b4 {[%clk
0:01:14.2]} 18... Bxf4 {[%clk 0:01:13.1]} 19. Qg4 {[%clk 0:01:10.6]} 19... Nd7
{[%clk 0:01:12.9]} 20. g3 {[%clk 0:01:08.1]} 20... Bd2 {[%clk 0:00:58.9]} 21.
Re2 {[%clk 0:00:59.7]} 21... Ne5 {[%clk 0:00:45.5]} 22. Qh5 {[%clk 0:00:53]}
22... Qf6 {[%clk 0:00:37.7]} 23. Rf1 {[%clk 0:00:28.5]} 23... Qg6 {[%clk
0:00:26]} 24. Qxg6+ {[%clk 0:00:23]} 24... fxg6 {[%clk 0:00:26.9]} 25. Kg2
{[%clk 0:00:23.7]} 25... Bxb4 {[%clk 0:00:25.6]} 26. Rd1 {[%clk 0:00:19.1]}
26... Bc5 {[%clk 0:00:24.3]} 27. Bd3 {[%clk 0:00:16]} 27... Rf3 {[%clk
0:00:20.5]} 28. Bb1 {[%clk 0:00:12.2]} 28... d3 {[%clk 0:00:20.2]} 29. Red2
{[%clk 0:00:10.5]} 29... Ref8 {[%clk 0:00:20.8]} 30. Rf1 {[%clk 0:00:07.9]}
30... Nxc4 {[%clk 0:00:21.5]} 31. Rxd3 {[%clk 0:00:07.8]} 31... Rxf2+ {[%clk
0:00:22]} 32. Rxf2 {[%clk 0:00:08.3]} 32... Rxf2+ {[%clk 0:00:22.9]} 33. Kh1
{[%clk 0:00:08.9]} 33... Ne5 {[%clk 0:00:23.5]} 34. Rd1 {[%clk 0:00:08.6]} 34...
Nf3 {[%clk 0:00:23.3]} 0-1